Cogmind - Beta 12 @@@ ROGUE MODE // 2023.07.06 @ 16:51:16 Player: Dazz Result: Destroyed by YI-UF0 with YI-UF0's Doublenader Performance ------------- Evolutions (1) 500 Regions Visited (3) 600 Robots Destroyed (14) 70 Value Destroyed (343) 343 Prototype IDs (0) 0 Alien Tech Used (0) 0 Bonus (0) 0 TOTAL SCORE: 1513 Bonus ------- None Cogmind --------- Core Integrity 0/400 Matter 253/300 Energy 56/100 System Corruption 0% Temperature Cool (0) Movement Core (300) Ox5 Location -9/Mines Parts ------- > --- POWER (1) -------- (None) > --- PROPULSION (2) --- (None) > --- UTILITY (4) ------ Medium Storage Unit Improved Targeting Computer Propulsion Shielding > --- WEAPON (2) ------- Assault Rifle Heavy Assault Rifle > --- INVENTORY (10) --- Small Laser Small Laser Particle Gun Assault Rifle Mining Claw Peak State ------------ > --- POWER ------------ Improved Ion Engine > --- PROPULSION ------- Aluminum Leg Aluminum Leg > --- UTILITY ---------- Heat Sink Heat Sink Medium Storage Unit Propulsion Shielding > --- WEAPON ----------- Assault Rifle Heavy Assault Rifle > --- INVENTORY -------- Improved Targeting Computer Propulsion Shielding Small Laser Small Laser Assault Rifle Assault Rifle Heavy Assault Rifle Mining Claw [Rating: 12] Favorites ----------- Power Ion Engine Engine Ion Engine Propulsion Aluminum Leg Leg Aluminum Leg Utility Heat Sink Device Heat Sink Storage Medium Storage Unit Processor Improved Targeting Computer Protection Propulsion Shielding Weapon Assault Rifle Ballistic Gun Assault Rifle Build | -11 -10 -9 -9 ------- Run | Jun Mat Mat Min Slots Evolved 2 | . . 2 . Power . | . . . . Propulsion . | . . . . Utility 2 | . . 2 . Weapon . | . . . . Parts Attached 24 | 6 4 10 4 Power 2 | 1 . 1 . Engine 2 | 1 . 1 . Core . | . . . . Reactor . | . . . . Propulsion 4 | 2 . 2 . Treads . | . . . . Leg 4 | 2 . 2 . Wheel . | . . . . Hover . | . . . . Flight . | . . . . Utility 11 | 1 4 4 2 Device 3 | . 1 2 . Storage 4 | 1 3 . . Processor 1 | . . . 1 Hackware . | . . . . Protection 3 | . . 2 1 Artifact . | . . . . Weapon 7 | 2 . 3 2 Energy Gun . | . . . . Energy Cannon . | . . . . Ballistic Gun 7 | 2 . 3 2 Ballistic Cannon . | . . . . Launcher . | . . . . Special Weapon . | . . . . Impact Weapon . | . . . . Slashing Weapon . | . . . . Piercing Weapon . | . . . . Special Melee Weapon . | . . . . Unidentified Prototypes . | . . . . Parts Lost 10 | . . 2 8 Power 1 | . . . 1 Propulsion 3 | . . 1 2 Utility 4 | . . 1 3 Weapon 2 | . . . 2 Highest Loss Streak 8 | . . 2 8 To Critical Strikes . | . . . . Average Slot Usage (%) 96 | . 98 93 98 Engine 11 | . 14 11 10 Leg 21 | . 28 18 21 Device 20 | . 12 21 21 Storage 11 | . 14 11 11 Protection 8 | . . 8 10 Ballistic Gun 22 | . 28 22 21 Naked Turns . | . . . . Heaviest Build 25 | 13 19 25 25 Greatest Support 20 | 20 20 20 20 Greatest Overweight (x) 3 | 3 . 2 1 Average Overweight (x) . | . . 1 . Largest Inventory Capacity 25 | 8 25 10 10 Average Capacity 9 | 7 8 10 10 Most Carried 10 | 5 9 10 9 Average Carried 7 | 1 5 8 8 Final Capacity 10 | 8 10 10 10 Final Carried 9 | 1 9 7 5 Class Distribution -------------------- 51% | Mutant 48% | Scavenger-Mutant Dominant Class ---------------- Mutant | -10/Materials Mutant | -9/Materials Scavenger-Mutant | -9/Mines Resources | -11 -10 -9 -9 ----------- Run | Jun Mat Mat Min Matter Collected 583 | 171 38 374 . Remotely . | . . . . Salvage Created 383 | . 38 345 . Parts 28 | . 3 25 . Haulers Intercepted . | . . . . Recyclers Shooed 1 | . . 1 . Parts Field Recycled . | . . . . Retrieved Matter . | . . . . Parts Self-Destructed . | . . . . Prevented . | . . . . Kills | -11 -10 -9 -9 ------- Run | Jun Mat Mat Min Combat Hostiles Destroyed 14 | . 1 13 . Guns 14 | . 1 13 . Classes Destroyed 3 | . 1 2 . Swarmer 7 | . . 7 . Grunt 5 | . 1 4 . Sentry 2 | . . 2 . Best Kill Streak 7 | . 1 7 . Combat Bots Only 7 | . 1 7 . Max Kills in Single Turn 2 | . 1 2 . Gunslinging . | . . . . Exploded . | . . . . Melee . | . . . . Uniques/NPCs Destroyed . | . . . . Combat | -11 -10 -9 -9 -------- Run | Jun Mat Mat Min Damage Taken 1487 | . 52 456 979 Core 404 | . . 48 356 Absorbed by Shields . | . . . . Redirected to Shielding 97 | . . 43 54 Core Remaining (%) 100 | 100 100 . . Volleys Fired 47 | . 10 35 2 Largest 2 | . 1 2 2 Hottest 43 | . 20 43 43 Shots Fired 84 | . 10 70 4 Gun 84 | . 10 70 4 Cannon . | . . . . Launcher . | . . . . Special . | . . . . Kinetic 84 | . 10 70 4 Thermal . | . . . . Explosive . | . . . . Electromagnetic . | . . . . Robot Hit Streak 7 | . 2 7 4 Robot Miss Streak 5 | . 2 5 2 Penetration Max . | . . . . Secondary Targets . | . . . . Shots Hit Robots 56 | . 5 49 2 Core Hits 24 | . 2 22 . Critical Kills 1 | . . 1 . Critical Parts Destroyed . | . . . . Critical Strikes 1 | . . 1 . Destroy 1 | . . 1 . Melee Attacks . | . . . . Impact . | . . . . Slashing . | . . . . Piercing . | . . . . Sneak Attacks . | . . . . Combat Hostiles . | . . . . Follow-up Attacks . | . . . . Damage Inflicted 641 | . 37 578 26 Guns 640 | . 37 577 26 Cannons . | . . . . Explosions . | . . . . Melee . | . . . . Ramming 1 | . . 1 . Kinetic 640 | . 37 577 26 Thermal . | . . . . Explosive . | . . . . Electromagnetic . | . . . . Impact . | . . . . Slashing . | . . . . Piercing . | . . . . Highest Corruption . | . . . . Average Corruption . | . . . . Corruption Purged . | . . . . Corruption Blocked . | . . . . Overload Shots . | . . . . Overflow Damage . | . . . . Projectiles . | . . . . Explosions . | . . . . Melee . | . . . . Knockbacks . | . . . . Impact . | . . . . Kinetic . | . . . . Secondary . | . . . . Self-Inflicted Damage . | . . . . Shots . | . . . . Rammed . | . . . . Targets Rammed 2 | . . 2 . Kicked 2 | . . 2 . Crushed . | . . . . Highest Temperature . | . . . . Average Temperature . | . . . . Received Heat Transfer 180 | . 30 141 9 Siege Activations . | . . . . Robots Corrupted . | . . . . Combat Hostiles . | . . . . Parts Fried . | . . . . Impact Corruptions . | . . . . Robots Melted . | . . . . Combat Hostiles . | . . . . Parts Melted . | . . . . Heat Transferred . | . . . . Parts Sabotaged . | . . . . Parts Stolen . | . . . . Parts Stripped . | . . . . Power Chain Reactions . | . . . . Missiles Intercepted . | . . . . Alert | -11 -10 -9 -9 ------- Run | Jun Mat Mat Min Peak Influence 375 | . 69 375 82 Initial 67 | . . 28 67 Average 104 | . 21 199 53 Maximum Alert Level 1 | . . 1 . Low Security (%) 89 | 100 100 72 100 Level 1 10 | . . 27 . Level 2 . | . . . . Level 3 . | . . . . Level 4 . | . . . . Level 5 . | . . . . High Security . | . . . . Max Security . | . . . . Squads Dispatched 2 | . 1 1 . Investigation . | . . . . Extermination . | . . . . Reinforcement 2 | . 1 1 . Assault . | . . . . Garrison . | . . . . Intercept . | . . . . Searches Triggered . | . . . . Construction Impeded . | . . . . Haulers Reinforced . | . . . . Active Scanning Responses . | . . . . Cargo Convoy Interrupts . | . . . . Stealth | -11 -10 -9 -9 --------- Run | Jun Mat Mat Min Distress Signals . | . . . . Communications Jammed . | . . . . Distress Signals . | . . . . Times Spotted 25 | . 3 16 6 Peak Tracking Total 7 | . 2 7 5 Tactical Retreats 3 | . . 2 1 Traps | -11 -10 -9 -9 ------- Run | Jun Mat Mat Min Traps Triggered . | . . . . Indirectly . | . . . . Trap Hack Attempts . | . . . . Triggered . | . . . . Disarmed . | . . . . Reprogrammed . | . . . . Reused . | . . . . Traps Extracted . | . . . . Installed . | . . . . Triggered . | . . . . Machines | -11 -10 -9 -9 ---------- Run | Jun Mat Mat Min Machines Disabled . | . . . . Max in Single Turn . | . . . . Machines Repaired . | . . . . Machines Sabotaged . | . . . . Overloaded Fab Kills . | . . . . Hacking | -11 -10 -9 -9 --------- Run | Jun Mat Mat Min Machines Accessed 5 | . 2 3 . Terminals 4 | . 2 2 . Fabricators . | . . . . Repair Stations 1 | . . 1 . Recycling Units . | . . . . Scanalyzers . | . . . . Garrison Access . | . . . . Total Hacks 15 | . 5 10 . Successful 5 | . 2 3 . Failed 10 | . 3 7 . Catastrophic 1 | . 1 . . Database Lockouts . | . . . . Manual . | . . . . Terminals 13 | . 5 8 . Fabricators . | . . . . Repair Stations 2 | . . 2 . Recycling Units . | . . . . Scanalyzers . | . . . . Garrison Access . | . . . . Terminal Hacks 5 | . 2 3 . Record 3 | . 1 2 . Branch Access Points 1 | . 1 . . Maintenance Status 1 | . . 1 . Fabricator Hacks . | . . . . Repair Station Hacks . | . . . . Recycling Unit Hacks . | . . . . Scanalyzer . | . . . . Garrison Access Hacks . | . . . . Unauthorized Hacks . | . . . . Terminals . | . . . . Fabricators . | . . . . Repair Stations . | . . . . Recycling Units . | . . . . Scanalyzers . | . . . . Garrison Access . | . . . . Data Cores Recovered . | . . . . Used . | . . . . Hacking Detections 2 | . 1 1 . Full Trace Events . | . . . . Feedback Events . | . . . . Feedback Blocked . | . . . . Robot Schematics Acquired . | . . . . Robots Built . | . . . . Authchips . | . . . . Time . | . . . . Total Robot Build Rating . | . . . . Part Schematics Acquired . | . . . . Parts Built . | . . . . Authchips . | . . . . Time . | . . . . Total Part Build Rating . | . . . . Parts Repaired . | . . . . Time . | . . . . Parts Recycled . | . . . . Recycled Matter . | . . . . Retrieved Matter . | . . . . Retrieved Components . | . . . . Parts Scanalyzed . | . . . . Part Schematics Acquired . | . . . . Parts Damaged . | . . . . Bothacking | -11 -10 -9 -9 ------------ Run | Jun Mat Mat Min Used RIF Installer . | . . . . Robots Hacked . | . . . . Non-combat . | . . . . Combat . | . . . . Robot Hacks Applied . | . . . . Relay Couplers Released . | . . . . Fabnet Peak Effective % . | . . . . Robots Rewired . | . . . . Allies Hacked . | . . . . Hacks Repelled . | . . . . Allies | -11 -10 -9 -9 -------- Run | Jun Mat Mat Min Total Allies . | . . . . Largest Group . | . . . . Highest-Rated Group . | . . . . Highest-Rated Ally . | . . . . Total Orders . | . . . . Ally Attacks . | . . . . Total Damage . | . . . . Kills . | . . . . Allies Corrupted . | . . . . Allies Melted . | . . . . Intel | -11 -10 -9 -9 ------- Run | Jun Mat Mat Min Robot Analysis Total . | . . . . Derelict Logs Recovered 1 | . . . 1 Drone Launches . | . . . . Drone Recoveries . | . . . . Exploration | -11 -10 -9 -9 ------------- Run | Jun Mat Mat Min Turns Passed 1436 | 55 200 571 610 Spaces Moved 724 | 46 137 220 321 Core 22 | 22 . . . Treads . | . . . . Legs 702 | 24 137 220 321 Wheels . | . . . . Hover . | . . . . Flight . | . . . . Fastest Speed 50 | 50 120 120 120 Average Speed 172 | 93 120 200 186 Slowest Speed 260 | 200 120 260 190 Overloaded Moves . | . . . . Propulsion Burnouts . | . . . . Robots Hopped . | . . . . Cave-ins Triggered . | . . . . Exploration Rate (%) 28 | 3 25 15 70 Regions Visited 3 Branch Regions 1 Pre-discovered Areas 1 | . . . 1 Known Exits Taken . | . . . . Unknown Exits Taken 3 | 1 1 1 . Scrap Searched . | . . . . Spaces Dug . | . . . . Terrain Destroyed . | . . . . Melee . | . . . . Projectile . | . . . . AOE . | . . . . Terrain Rammed . | . . . . Walls Destroyed . | . . . . Machines Disabled . | . . . . Actions | -11 -10 -9 -9 --------- Run | Jun Mat Mat Min Total 842 | 60 165 286 331 Wait 7 | . . 5 2 Move 721 | 45 136 219 321 Hop . | . . . . Pick Up 30 | 8 12 8 2 Fast Attach . | . . . . Attach 21 | 6 3 8 4 Detach 1 | . . 1 . Swap 3 | . 1 2 . Drop 10 | 1 3 6 . Fire 47 | . 10 35 2 Melee . | . . . . Ram . | . . . . Kick 2 | . . 2 . Crush . | . . . . Escape Stasis . | . . . . Rewire . | . . . . Trap . | . . . . Miscellaneous . | . . . . Route ------- -11/Junkyard -10/Materials (discovered 3 exits: *Mat / Min x2) -9/Materials -9/Mines (discovered 1 exit: [*Mat]) History --------- Turn | Location | Event 6 | -11/Junkyard | Discovered new exit (range 16) 56 | -11/Junkyard | Entered Materials 163 | -10/Materials | Identified exit to Mines 213 | -10/Materials | Discovered new exit (range 16) 256 | -10/Materials | Entered another Materials area 256 | -9/Materials | Evolved 2 slots: Utility x2 305 | -9/Materials | Build established: Mutant 551 | -9/Materials | Destroyed 7 combat bots 641 | -9/Materials | Discovered new exit (range 11) 827 | -9/Materials | Entered Mines 831 | -9/Mines | Joined a pair of Derelicts in attacking an 0b10 outpost 852 | -9/Mines | Learned location of Zion (-7) 1019 | -9/Mines | Build established: Scavenger-Mutant 1278 | -9/Mines | Discovered new exit (range 9) 1370 | -9/Mines | Assembled infested the area 1423 | -9/Mines | Core integrity fell below 50% 1436 | -9/Mines | Core integrity fell below 20% 1437 | -9/Mines | Destroyed by YI-UF0 with YI-UF0's Doublenader Last Messages --------------- Heat Sink destroyed. Hvy. Assault Rifle destroyed. T-07 Excavator destroyed. YI-UF0: "WHOMP!" K-01 Serf destroyed. as-21019 destroyed. The unstable cave ceiling collapses. U-05 Engineer lays Concrete. Heat Sink destroyed. Aluminum Leg destroyed. Assault Rifle destroyed. U-05 Engineer destroyed. The unstable cave ceiling collapses. Propulsion Shielding destroyed. The unstable cave ceiling collapses. YI-UF0: "BAROOM!" D-53 Grenadier destroyed. Aluminum Leg destroyed. YI-UF0 mumbles something. The unstable cave ceiling collapses. Map ----- +----------------------------------------------------+ | ????????????????????????????????????????????? | | ?????????????????????????????????####???????? | | ?????????????????????????????# ?? ???????? | | ??????????????????????###????# ? "???????? | | ?????????????######### ##???# ""??????? | | ????????????## ## #???# < """ #???? | | ???????????## #???# #???? | | ??? #????## ####???# """ """ #???? | | ??? #????# ##??????# """ """ #???? | | ??# #????# #####???# """ """ #???? | | ??# #????# ##??# #???? | | ??# #???## #??# """ """ #???? | | ??# #??## """ #??# """ """ #???? | | ??# #??# ### """ #??# """ """ #???? | | ??# #??# ### " " #??# #???? | | ??# #??# ? #??### #######???? | | ??# #??## ?# #????# #?????????? | | #?# #???## ### ##????# #?????????? | | ### $#?????# ##?????# #?????????? | | ##????# #??????# #?????????? | | ##???# ######?# #?????????? | | ##?## #?# #?????????? | | ## #?# !%| # d ### #?????????? | | ### #?# ## ## #?????????? | | # # ## #?????????? | | @ ## #?????????? | | ## g #?????????? | | ### # #?????????? | | #?## ### #####?????????? | | #??####?## ##?????????????? | | #????????## #??????????????? | | #????????# #??????????????? | | #????????# # #??????????????? | | #???????## # ## ####??????????????? | | #???????# #### ??###??????????????????? | | #??????## ##?##???????????????????????? | | #??????# ####???????????????????????? | | ???????# ##??????????????????????? | | ???????## #??????????????????????? | | ????????######### #??????????????????????? | | ????????????????## ##??????????????????????? | | ??????????????????###???????????????????????? | | ????????????????????????????????????????????? | | | | | | | | | | | | | | | +----------------------------------------------------+ Best States ------------- Heat Dissipation 48 Energy Generation 12 Energy Capacity 265 Matter Stores 300 Matter Capacity 300 Sight Range 16 Robot Scan Range 14 Terrain Scan Density 10 Propulsion Shielding 33 Evasion (%) 55 Item Schematics ----------------- None Robot Schematics ------------------ None Fabricated ------------ Nothing Alien Tech Used ----------------- None Achievements -------------- None Challenges ------------ None Game ------ Seed CompactThunderMantle Manual? 0 Play Time 00:24:38 Cumulative 3.1 hours Start 2023.07.06 @ 16:28:01 End 2023.07.06 @ 16:51:16 Sessions 1 Manual Loads 0 Difficulty Rogue Special Mode None Game No. 10 Rogue 10 Adventurer 0 Explorer 0 Win Type - Total 0 Types 0/0/0/0/0/0/0/0/0 Lore% 1 Gallery% 5 Achievement% 6 Wizard Run 0 Options --------- ASCII 0 Keyboard 0 Movement Mouse Keybinds 0 Fullscreen 2 Font 24/Proggy Map View 76x50 Tactical HUD 0 Map Filters NONE Filters NONE Steam 1 RUN: 41920898-a4b3-417f-8271-2b52ad356c80